Workbook

Sheet Hinweise
A1: Geschäftsgang 1
A3: Voraussetzungen
A4: Um den Geschäftsgang buchen zu können, müssen Sie Kenntnisse über die folgenden Lehrninhalte haben:
A5: Buchungen auf Bestandskonten Buchungen auf Erfolgskonten
A9: Vorgehensweise
A10: 1. Wählen Sie die Tabelle "Grundbuch".
A12: 2. Buchen Sie die Geschäftsvorfälle
A13: entweder durch Direkteingabe in die entsprechenden Felder des Grundbuchs (Kontennummern und Beträge)
A14: oder durch Aufruf von Buchungsfenstern. (Klicken Sie dazu jeweils auf die Schaltfläche "Buchung" und beenden
A15: Sie die Eingabe mit "OK".)
A16: Die Kontennummern sind vierstellig anzugeben. (siehe Kontenplan). Bei zusammengesetzten Buchungssätzen
A17: sind die Buchungen nach der Höhe der Beträge geordnet vorzunehmen.
A19: 3. Sie können sich den Kontenplan mit Kontennummern jederzeit durch Klick auf den
A20: entsprechenden Button anzeigen lassen.
A22: 4. Die Richtigkeit Ihrer Buchungen wird bestätigt oder Sie werden auf
A23: Fehler hingewiesen. (Ohne Buchung werden Fehler angezeigt.)
A25: 5. Hauptbuch, Gewinn und Verlust und Bilanzbuch werden automatisch erstellt.

Sheet Grundbuch
A2: Geschäftsvorfälle
A3: Grundbuch
A6: 1. | B6: Zieleinkauf von Baumwollstoffen, | E6: 11200 | F6: =IF(AND(B10="2000",E10="4400"),"Die Konten sind richtig!","Mindestens ein Konto ist falsch!") -> Mindestens ein Konto ist falsch!
A7: Geschäftsvorfall | F7: =IF(AND(D10=E6,G10=E6),"Die Beträge sind richtig!","Mindestens ein Betrag ist falsch!") -> Mindestens ein Betrag ist falsch!
F8: =IF(AND(F6="Die Konten sind richtig!",F7="Die Beträge sind richtig!"),"Alles richtig!","Es sind noch Fehler vorhanden!") -> Es sind noch Fehler vorhanden!
B9: Soll | C9: Konto | D9: € | E9: Haben | F9: Konto | G9: €
A10: Buchungssatz | C10: =IF(B10="","",VLOOKUP(B10,Kontenplan!$A$4:$B$30,2)) ->  | F10: =IF(E10="","",VLOOKUP(E10,Kontenplan!$A$4:$B$30,2)) -> 
A13: 2. | B13: Lohnzahlung bar, | E13: 2500 | F13: =IF(AND(B17="6200",E17="2880"),"Die Konten sind richtig!","Mindestens ein Konto ist falsch!") -> Mindestens ein Konto ist falsch!
A14: Geschäftsvorfall | F14: =IF(AND(D17=E13,G17=E13),"Die Beträge sind richtig!","Mindestens ein Betrag ist falsch!") -> Mindestens ein Betrag ist falsch!
F15: =IF(AND(F13="Die Konten sind richtig!",F14="Die Beträge sind richtig!"),"Alles richtig!","Es sind noch Fehler vorhanden!") -> Es sind noch Fehler vorhanden!
B16: Soll | C16: Konto | D16: € | E16: Haben | F16: Konto | G16: €
A17: Buchungssatz | C17: =IF(B17="","",VLOOKUP(B17,Kontenplan!$A$4:$B$30,2)) ->  | F17: =IF(E17="","",VLOOKUP(E17,Kontenplan!$A$4:$B$30,2)) -> 
A20: 3. | B20: Die Kick Moden GmbH begleicht unsere Ausgangsrechnung durch Banküberweisung, | E20: 4200 | F20: =IF(AND(B24="2800",E24="2400"),"Die Konten sind richtig!","Mindestens ein Konto ist falsch!") -> Mindestens ein Konto ist falsch!
A21: Geschäftsvorfall | F21: =IF(AND(D24=E20,G24=E20),"Die Beträge sind richtig!","Mindestens ein Betrag ist falsch!") -> Mindestens ein Betrag ist falsch!
F22: =IF(AND(F20="Die Konten sind richtig!",F21="Die Beträge sind richtig!"),"Alles richtig!","Es sind noch Fehler vorhanden!") -> Es sind noch Fehler vorhanden!
B23: Soll | C23: Konto | D23: € | E23: Haben | F23: Konto | G23: €
A24: Buchungssatz | C24: =IF(B24="","",VLOOKUP(B24,Kontenplan!$A$4:$B$30,2)) ->  | F24: =IF(E24="","",VLOOKUP(E24,Kontenplan!$A$4:$B$30,2)) -> 
A27: 4. | B27: Barzahlung für eine Maschinenreparatur, | E27: 820 | F27: =IF(AND(B31="6160",E31="2880"),"Die Konten sind richtig!","Mindestens ein Konto ist falsch!") -> Mindestens ein Konto ist falsch!
A28: Geschäftsvorfall | F28: =IF(AND(D31=E27,G31=E27),"Die Beträge sind richtig!","Mindestens ein Betrag ist falsch!") -> Mindestens ein Betrag ist falsch!
F29: =IF(AND(F27="Die Konten sind richtig!",F28="Die Beträge sind richtig!"),"Alles richtig!","Es sind noch Fehler vorhanden!") -> Es sind noch Fehler vorhanden!
B30: Soll | C30: Konto | D30: € | E30: Haben | F30: Konto | G30: €
A31: Buchungssatz | C31: =IF(B31="","",VLOOKUP(B31,Kontenplan!$A$4:$B$30,2)) ->  | F31: =IF(E31="","",VLOOKUP(E31,Kontenplan!$A$4:$B$30,2)) -> 
A34: 5. | B34: Verbrauch lt. Materialentnahmescheine für | F34: =IF(AND(B39="6000",E39="2000",B40="6020",E40="2020",B41="6030",E41="2030"),"Die Konten sind richtig!","Mindestens ein Konto ist falsch!") -> Mindestens ein Konto ist falsch!
A35: Geschäftsvorfall | C35: - Rohstoffe | E35: 4500
C36: - Hilfsstoffe | E36: 230 | F36: =IF(AND(D39=E35,D40=E36,D41=E37,G39=E35,G40=E36,G41=E37),"Die Beträge sind richtig!","Mindestens ein Betrag ist falsch!") -> Mindestens ein Betrag ist falsch!
C37: - Betriebsstoffe | E37: 450 | F37: =IF(AND(F34="Die Konten sind richtig!",F36="Die Beträge sind richtig!"),"Alles richtig!","Es sind noch Fehler vorhanden!") -> Es sind noch Fehler vorhanden!
B38: Soll | C38: Konto | D38: € | E38: Haben | F38: Konto | G38: €
A39: Buchungssatz | C39: =IF(B39="","",VLOOKUP(B39,Kontenplan!$A$4:$B$30,2)) ->  | F39: =IF(E39="","",VLOOKUP(E39,Kontenplan!$A$4:$B$30,2)) -> 
C40: =IF(B40="","",VLOOKUP(B40,Kontenplan!$A$4:$B$30,2)) ->  | F40: =IF(E40="","",VLOOKUP(E40,Kontenplan!$A$4:$B$30,2)) -> 
C41: =IF(B41="","",VLOOKUP(B41,Kontenplan!$A$4:$B$30,2)) ->  | F41: =IF(E41="","",VLOOKUP(E41,Kontenplan!$A$4:$B$30,2)) -> 
A43: 6. | B43: Die Zip GmbH belastet uns mit Verzugszinsen, | E43: 60 | F43: =IF(AND(B47="7510",E47="4400"),"Die Konten sind richtig!","Mindestens ein Konto ist falsch!") -> Mindestens ein Konto ist falsch!
A44: Geschäftsvorfall | F44: =IF(AND(D47=E43,G47=E43),"Die Beträge sind richtig!","Mindestens ein Betrag ist falsch!") -> Mindestens ein Betrag ist falsch!
F45: =IF(AND(F43="Die Konten sind richtig!",F44="Die Beträge sind richtig!"),"Alles richtig!","Es sind noch Fehler vorhanden!") -> Es sind noch Fehler vorhanden!
B46: Soll | C46: Konto | D46: € | E46: Haben | F46: Konto | G46: €
A47: Buchungssatz | C47: =IF(B47="","",VLOOKUP(B47,Kontenplan!$A$4:$B$31,2)) ->  | F47: =IF(E47="","",VLOOKUP(E47,Kontenplan!$A$4:$B$30,2)) -> 
A50: 7. | B50: Ausgangsrechnung an die Route 66 GmbH für Verkäufe von Jeans, Jeansjacken und T-Shirts | E50: 18500 | F50: =IF(AND(B54="2400",E54="5000"),"Die Konten sind richtig!","Mindestens ein Konto ist falsch!") -> Mindestens ein Konto ist falsch!
A51: Geschäftsvorfall | F51: =IF(AND(D54=E50,G54=E50),"Die Beträge sind richtig!","Mindestens ein Betrag ist falsch!") -> Mindestens ein Betrag ist falsch!
F52: =IF(AND(F50="Die Konten sind richtig!",F51="Die Beträge sind richtig!"),"Alles richtig!","Es sind noch Fehler vorhanden!") -> Es sind noch Fehler vorhanden!
B53: Soll | C53: Konto | D53: € | E53: Haben | F53: Konto | G53: €
A54: Buchungssatz | C54: =IF(B54="","",VLOOKUP(B54,Kontenplan!$A$4:$B$31,2)) ->  | F54: =IF(E54="","",VLOOKUP(E54,Kontenplan!$A$4:$B$30,2)) -> 
A57: 8. | B57: Zieleinkauf eines Druckers, | E57: 450 | F57: =IF(AND(B61="0800",E61="4400"),"Die Konten sind richtig!","Mindestens ein Konto ist falsch!") -> Mindestens ein Konto ist falsch!
A58: Geschäftsvorfall | F58: =IF(AND(D61=E57,G61=E57),"Die Beträge sind richtig!","Mindestens ein Betrag ist falsch!") -> Mindestens ein Betrag ist falsch!
F59: =IF(AND(F57="Die Konten sind richtig!",F58="Die Beträge sind richtig!"),"Alles richtig!","Es sind noch Fehler vorhanden!") -> Es sind noch Fehler vorhanden!
B60: Soll | C60: Konto | D60: € | E60: Haben | F60: Konto | G60: €
A61: Buchungssatz | C61: =IF(B61="","",VLOOKUP(B61,Kontenplan!$A$4:$B$31,2)) ->  | F61: =IF(E61="","",VLOOKUP(E61,Kontenplan!$A$4:$B$30,2)) -> 
A64: 9. | B64: Barverkauf von Jeans, | E64: 3600 | F64: =IF(AND(B68="2880",E68="5000"),"Die Konten sind richtig!","Mindestens ein Konto ist falsch!") -> Mindestens ein Konto ist falsch!
A65: Geschäftsvorfall | F65: =IF(AND(D68=E64,G68=E64),"Die Beträge sind richtig!","Mindestens ein Betrag ist falsch!") -> Mindestens ein Betrag ist falsch!
F66: =IF(AND(F64="Die Konten sind richtig!",F65="Die Beträge sind richtig!"),"Alles richtig!","Es sind noch Fehler vorhanden!") -> Es sind noch Fehler vorhanden!
B67: Soll | C67: Konto | D67: € | E67: Haben | F67: Konto | G67: €
A68: Buchungssatz | C68: =IF(B68="","",VLOOKUP(B68,Kontenplan!$A$4:$B$31,2)) ->  | F68: =IF(E68="","",VLOOKUP(E68,Kontenplan!$A$4:$B$30,2)) -> 
A71: 10. | B71: Banklastschrift für - Kreditzinsen | E71: 450 | F71: =IF(AND(B75="7510",B76="6700",E75="2800"),"Die Konten sind richtig!","Mindestens ein Konto ist falsch!") -> Mindestens ein Konto ist falsch!
A72: Geschäftsvorfall | C72: - Lagerraummiete | E72: 2400 | F72: =IF(AND(D75=E71,D76=E72,G75=E73),"Die Beträge sind richtig!","Mindestens ein Betrag ist falsch!") -> Mindestens ein Betrag ist falsch!
C73: Banklastschrift | E73: =SUM(E71:E72) -> 2850 | F73: =IF(AND(F71="Die Konten sind richtig!",F72="Die Beträge sind richtig!"),"Alles richtig!","Es sind noch Fehler vorhanden!") -> Es sind noch Fehler vorhanden!
B74: Soll | C74: Konto | D74: € | E74: Haben | F74: Konto | G74: €
A75: Buchungssatz | C75: =IF(B75="","",VLOOKUP(B75,Kontenplan!$A$4:$B$30,2)) ->  | F75: =IF(E75="","",VLOOKUP(E75,Kontenplan!$A$4:$B$30,2)) -> 
C76: =IF(B76="","",VLOOKUP(B76,Kontenplan!$A$4:$B$30,2)) -> 
A78: 11. | B78: Barzahlung für Werbeprospekte | E78: 400 | F78: =IF(AND(B82="6870",E82="2880"),"Die Konten sind richtig!","Mindestens ein Konto ist falsch!") -> Mindestens ein Konto ist falsch!
A79: Geschäftsvorfall | F79: =IF(AND(D82=E78,G82=E78),"Die Beträge sind richtig!","Mindestens ein Betrag ist falsch!") -> Mindestens ein Betrag ist falsch!
F80: =IF(AND(F78="Die Konten sind richtig!",F79="Die Beträge sind richtig!"),"Alles richtig!","Es sind noch Fehler vorhanden!") -> Es sind noch Fehler vorhanden!
B81: Soll | C81: Konto | D81: € | E81: Haben | F81: Konto | G81: €
A82: Buchungssatz | C82: =IF(B82="","",VLOOKUP(B82,Kontenplan!$A$4:$B$31,2)) ->  | F82: =IF(E82="","",VLOOKUP(E82,Kontenplan!$A$4:$B$30,2)) -> 
A85: 12. | B85: Barverkauf einer gebrauchten Maschine | E85: 1000 | F85: =IF(AND(B89="2880",E89="0700"),"Die Konten sind richtig!","Mindestens ein Konto ist falsch!") -> Mindestens ein Konto ist falsch!
A86: Geschäftsvorfall | F86: =IF(AND(D89=E85,G89=E85),"Die Beträge sind richtig!","Mindestens ein Betrag ist falsch!") -> Mindestens ein Betrag ist falsch!
F87: =IF(AND(F85="Die Konten sind richtig!",F86="Die Beträge sind richtig!"),"Alles richtig!","Es sind noch Fehler vorhanden!") -> Es sind noch Fehler vorhanden!
B88: Soll | C88: Konto | D88: € | E88: Haben | F88: Konto | G88: €
A89: Buchungssatz | C89: =IF(B89="","",VLOOKUP(B89,Kontenplan!$A$4:$B$31,2)) ->  | F89: =IF(E89="","",VLOOKUP(E89,Kontenplan!$A$4:$B$30,2)) -> 
A92: 13. | B92: Verkauf von Trainingsanzügen, - bar | E92: 1000 | F92: =IF(AND(B96="2880",B97="2800",E96="5000"),"Die Konten sind richtig!","Mindestens ein Konto ist falsch!") -> Mindestens ein Konto ist falsch!
A93: Geschäftsvorfall | C93: - gegen Bankscheck | E93: 8400 | F93: =IF(AND(D96=E92,D97=E93,G96=E94),"Die Beträge sind richtig!","Mindestens ein Betrag ist falsch!") -> Mindestens ein Betrag ist falsch!
C94: Gesamtumsatzerlös | E94: =SUM(E92:E93) -> 9400 | F94: =IF(AND(F92="Die Konten sind richtig!",F93="Die Beträge sind richtig!"),"Alles richtig!","Es sind noch Fehler vorhanden!") -> Es sind noch Fehler vorhanden!
B95: Soll | C95: Konto | D95: € | E95: Haben | F95: Konto | G95: €
A96: Buchungssatz | C96: =IF(B96="","",VLOOKUP(B96,Kontenplan!$A$4:$B$30,2)) ->  | F96: =IF(E96="","",VLOOKUP(E96,Kontenplan!$A$4:$B$30,2)) -> 
C97: =IF(B97="","",VLOOKUP(B97,Kontenplan!$A$4:$B$30,2)) -> 
A100: =IF(AND(F8="Alles richtig!",F15="Alles richtig!",F22="Alles richtig!",F29="Alles richtig!",F37="Alles richtig!",F45="Alles richtig!",F52="Alles richtig!",F59="Alles richtig!",F66="Alles richtig!",F73="Alles richtig!",F80="Alles richtig!",F87="Alles richtig!",F94="Alles richtig!"),"Super gebucht, die Aufgabe ist gelöst!","Bilden Sie alle Buchungssätze!") -> Bilden Sie alle Buchungssätze!

Sheet Hauptbuch
A1: Hauptbuch
A3: Soll | B3: 0510 Bebaute Grundstücke | J3: Haben
A4: AB | B4: 8000 | E4: =Bilanzbuch!C4 -> 500000 | F4: SB | G4: 8010 | J4: =E4 -> 500000
A6: Soll | B6: 0700 Technische Anlagen und Maschinen | J6: Haben
A7: AB | B7: 8000 | E7: =Bilanzbuch!C5 -> 245000 | F7: 12. | G7: 2880 | J7: =Grundbuch!G89 -> 0
F8: SB | G8: 8010 | J8: =J9-SUM(J7:J7) -> 245000
E9: =SUM(E7:E8) -> 245000 | J9: =E9 -> 245000
A11: Soll | B11: 0800 Betriebs- und Geschäftsausstattung | J11: Haben
A12: AB | B12: 8000 | E12: =Bilanzbuch!C6 -> 124500 | F12: SB | G12: 8010 | J12: =J14 -> 124500
A13: 8. | B13: 4400 | E13: =Grundbuch!D61 -> 0
E14: =SUM(E12:E13) -> 124500 | J14: =E14 -> 124500
A16: Soll | B16: 2000 Rohstoffe | J16: Haben
A17: AB | B17: 8000 | E17: =Bilanzbuch!C7 -> 138000 | F17: 5. | G17: 6000 | J17: =Grundbuch!G39 -> 0
A18: 1. | B18: 4400 | E18: =Grundbuch!D10 -> 0 | F18: SB | G18: 8010 | J18: =J19-J17 -> 138000
E19: =SUM(E17:E18) -> 138000 | J19: =E19 -> 138000
A21: Soll | B21: 2020 Hilfsstoffe | J21: Haben
A22: AB | B22: 8000 | E22: =Bilanzbuch!C8 -> 6700 | F22: 5. | G22: 6020 | J22: =Grundbuch!G40 -> 0
F23: SB | G23: 8010 | J23: =J24-J22 -> 6700
E24: =SUM(E22:E23) -> 6700 | J24: =E24 -> 6700
A26: Soll | B26: 2030 Betriebsstoffe | J26: Haben
A27: AB | B27: 8000 | E27: =Bilanzbuch!C9 -> 2100 | F27: 5. | G27: 6030 | J27: =Grundbuch!G41 -> 0
F28: SB | G28: 8010 | J28: =J29-J27 -> 2100
E29: =SUM(E27:E28) -> 2100 | J29: =E29 -> 2100
A31: Soll | B31: 2100 Unfertige Erzeugnisse | J31: Haben
A32: AB | B32: 8000 | E32: =Bilanzbuch!C10 -> 120000 | F32: SB | J32: =E32 -> 120000
A34: Soll | B34: 2200 Fertige Erzeugnisse | J34: Haben
A35: AB | B35: 8000 | E35: =Bilanzbuch!C11 -> 25800 | F35: SB | J35: =E35 -> 25800
A37: Soll | B37: 2400 Forderungen aus Lieferungen und Leistungen | J37: Haben
A38: AB | B38: 8000 | E38: =Bilanzbuch!C12 -> 53800 | F38: 3. | G38: 2800 | J38: =Grundbuch!G24 -> 0
A39: 7. | B39: 4400 | E39: =Grundbuch!D54 -> 0 | F39: SB | G39: 8010 | J39: =J40-J38 -> 53800
E40: =SUM(E38:E39) -> 53800 | J40: =E40 -> 53800
A42: Soll | B42: 2800 Kreditinstitute/Bank | J42: Haben
A43: AB | B43: 8000 | E43: =Bilanzbuch!C13 -> 99800 | F43: 9. | G43: 7510 | H43: 6700 | J43: =Grundbuch!G75 -> 0
A44: 3. | B44: 2400 | E44: =Grundbuch!D24 -> 0 | F44: SB | G44: 8010 | J44: =J46-J43 -> 99800
A45: 13. | B45: 5000 | E45: =Grundbuch!D97 -> 0
E46: =SUM(E43:E45) -> 99800 | J46: =E46 -> 99800
A48: Soll | B48: 2880 Kasse | J48: Haben
A49: AB | B49: 8000 | E49: =Bilanzbuch!C14 -> 5600 | F49: 2. | G49: 6200 | J49: =Grundbuch!G17 -> 0
A50: 9. | B50: 5000 | E50: =Grundbuch!D68 -> 0 | F50: 4. | G50: 6160 | J50: =Grundbuch!G31 -> 0
A51: 12. | B51: 0700 | E51: =Grundbuch!D89 -> 0 | F51: 11. | G51: 6870 | J51: =Grundbuch!G82 -> 0
A52: 13. | B52: 5000 | E52: =Grundbuch!D96 -> 0 | F52: SB | G52: 8010 | J52: =J53-SUM(J49:J51) -> 5600
E53: =SUM(E49:E52) -> 5600 | J53: =E53 -> 5600
A55: Soll | B55: 3000 Eigenkapital | J55: Haben
A56: A | B56: 8020 | E56: =IF(GuV!F12>0,GuV!F12,0) -> 0 | F56: AB | G56: 8000 | J56: =Bilanzbuch!F4 -> 792400
A57: SB | B57: 8010 | E57: =E58-E56 -> 792400 | F57: A | G57: 8020 | J57: =IF(GuV!C12>0,GuV!C12,0) -> 0
E58: =J58 -> 792400 | J58: =SUM(J56:J57) -> 792400
A60: Soll | B60: 4200 Verbindlichkeiten gegenüber Kreditinsituten | J60: Haben
A61: SB | B61: 8000 | E61: =Bilanzbuch!F5 -> 450000 | F61: AB | G61: 8000 | J61: =Bilanzbuch!F5 -> 450000
A63: Soll | B63: 4400 Verbindlichkeiten aus Lieferungen und Leistungen | J63: Haben
A64: SB | B64: 8010 | E64: =E68-SUM(E65:E67) -> 78900 | F64: AB | G64: 8000 | J64: =Bilanzbuch!F6 -> 78900
F65: 1. | G65: 2000 | J65: =Grundbuch!G10 -> 0
F66: 6. | G66: 7510 | J66: =Grundbuch!G47 -> 0
F67: 8. | G67: 0800 | J67: =Grundbuch!G61 -> 0
E68: =J68 -> 78900 | J68: =SUM(J64:J67) -> 78900
A70: Soll | B70: 5000 Umsatzerlöse | J70: Haben
A71: A | B71: 8020 | E71: =E74 -> 0 | F71: 7. | G71: 2400 | J71: =Grundbuch!G54 -> 0
F72: 9. | G72: 2880 | J72: =Grundbuch!G68 -> 0
F73: 13. | G73: 2880 | H73: 2800 | J73: =Grundbuch!G96 -> 0
E74: =J74 -> 0 | J74: =SUM(J71:J73) -> 0
A76: Soll | B76: 6000 Aufwendungen für Rohstoffe | J76: Haben
A77: 5. | B77: 2000 | E77: =Grundbuch!D39 -> 0 | F77: A | G77: 8020 | J77: =E77 -> 0
A79: Soll | B79: 6020 Aufwendungen für Hilfsstoffe | J79: Haben
A80: 5. | B80: 2020 | E80: =Grundbuch!D40 -> 0 | F80: A | G80: 8020 | J80: =E80 -> 0
A82: Soll | B82: 6030 Aufwendungen für Betriebsstoffe | J82: Haben
A83: 5. | B83: 2030 | E83: =Grundbuch!D41 -> 0 | F83: A | G83: 8020 | J83: =E83 -> 0
A85: Soll | B85: 6160 Fremdinstandhaltung | J85: Haben
A86: 4. | B86: 2880 | E86: =Grundbuch!D31 -> 0 | F86: A | G86: 8020 | J86: =E86 -> 0
A88: Soll | B88: 6200 Löhne | J88: Haben
A89: 2. | B89: 2880 | E89: =Grundbuch!D17 -> 0 | F89: A | G89: 8020 | J89: =E89 -> 0
A91: Soll | B91: 6700 Mieten | J91: Haben
A92: 9. | B92: 2800 | E92: =Grundbuch!D76 -> 0 | F92: A | G92: 8020 | J92: =E92 -> 0
A94: Soll | B94: 6870 Werbung | J94: Haben
A95: 11. | B95: 2880 | E95: =Grundbuch!D82 -> 0 | F95: A | G95: 8020 | J95: =E95 -> 0
A97: Soll | B97: 7510 Zinsaufwendungen | J97: Haben
A98: 6. | B98: 4400 | E98: =Grundbuch!D47 -> 0 | F98: A | G98: 8020 | J98: =J100 -> 0
A99: 9. | B99: 2800 | E99: =Grundbuch!D75 -> 0
E100: =SUM(E98:E99) -> 0 | J100: =E100 -> 0

Sheet GuV
A1: Gewinn- und Verlustrechnung
A3: Soll | B3: 8020 Gewinn und Verlust | F3: Haben
A4: 6000 | B4: Aufwendungen für Rohstoffe | C4: =Hauptbuch!J77 -> 0 | D4: 5000 | E4: Umsatzerlöse | F4: =Hauptbuch!E71 -> 0
A5: 6020 | B5: Aufwendungen für Hilfsstoffe | C5: =Hauptbuch!E80 -> 0
A6: 6030 | B6: Aufwendungen für Betriebsstoffe | C6: =Hauptbuch!J83 -> 0
A7: 6160 | B7: Fremdinstandhaltung | C7: =Hauptbuch!J86 -> 0
A8: 6200 | B8: Löhne | C8: =Hauptbuch!J89 -> 0
A9: 6700 | B9: Mieten | C9: =Hauptbuch!J92 -> 0
A10: 6870 | B10: Werbung | C10: =Hauptbuch!J95 -> 0
A11: 7510 | B11: Zinsaufwendungen | C11: =Hauptbuch!J98 -> 0
A12: =IF(SUM($F$4:$F$7)>SUM($C$4:$C$11),"3000","") ->  | B12: =IF(SUM($F$4:$F$7)>SUM($C$4:$C$11),"Eigenkapital","") ->  | C12: =IF(SUM($F$4:$F$7)>SUM($C$4:$C$11),SUM($F$4:$F$7)-SUM($C$4:$C$11),0) -> 0 | D12: =IF(SUM($F$4:$F$7)<SUM($C$4:$C$11),"3000","") ->  | E12: =IF(SUM($F$4:$F$7)<SUM($C$4:$C$11),"Eigenkapital","") ->  | F12: =IF(SUM($F$4:$F$7)<SUM($C$4:$C$11),SUM($C$4:$C$11)-SUM($F$4:$F$7),0) -> 0
C13: =IF(SUM($F$4:$F$7)>SUM($C$4:$C$11),SUM($F$4:$F$7),SUM($C$4:$C$11)) -> 0 | F13: =IF(SUM($F$4:$F$7)>SUM($C$4:$C$11),SUM($F$4:$F$7),SUM($C$4:$C$11)) -> 0

Sheet Bilanzbuch
A1: Bilanzbuch
A3: Aktiva | B3: 8000 Eröffnungsbilanz | F3: Passiva
A4: 0510 | B4: Bebaute Grundstücke | C4: 500000 | D4: 3000 | E4: Eigenkapital | F4: =F15-SUM(F5:F14) -> 792400
A5: 0700 | B5: Technische Anlagen und Maschinen | C5: 245000 | D5: 4200 | E5: Verbindlichkeiten g. Kreditinstituten | F5: 450000
A6: 0800 | B6: Betriebs- und Geschäftsausstattung | C6: 124500 | D6: 4400 | E6: Verbindlichkeiten a.L.u.L. | F6: 78900
A7: 2000 | B7: Rohstoffe | C7: 138000
A8: 2020 | B8: Hilfsstoffe | C8: 6700
A9: 2040 | B9: Betriebsstoffe | C9: 2100
A10: 2100 | B10: Unfertige Erzeugnisse | C10: 120000
A11: 2200 | B11: Fertige Erzeugnisse | C11: 25800
A12: 2400 | B12: Forderungen a.L.u.L. | C12: 53800
A13: 2800 | B13: Bank | C13: 99800
A14: 2880 | B14: Kasse | C14: 5600
C15: =SUM(C4:C14) -> 1321300 | F15: =C15 -> 1321300
A17: Aktiva | B17: 8010 Schlussbilanz | F17: Passiva
A18: 0510 | B18: Bebaute Grundstücke | C18: =Hauptbuch!J4 -> 500000 | D18: 3000 | E18: Eigenkapital | F18: =Hauptbuch!E57 -> 792400
A19: 0700 | B19: Technische Anlagen und Maschinen | C19: =Hauptbuch!J8 -> 245000 | D19: 4200 | E19: Verbindlichkeiten g. Kreditinstituten | F19: =Hauptbuch!E61 -> 450000
A20: 0800 | B20: Betriebs- und Geschäftsausstattung | C20: =Hauptbuch!J12 -> 124500 | D20: 4400 | E20: Verbindlichkeiten a.L.u.L. | F20: =Hauptbuch!E64 -> 78900
A21: 2000 | B21: Rohstoffe | C21: =Hauptbuch!J18 -> 138000
A22: 2020 | B22: Hilfsstoffe | C22: =Hauptbuch!J23 -> 6700
A23: 2040 | B23: Betriebsstoffe | C23: =Hauptbuch!J28 -> 2100
A24: 2100 | B24: Unfertige Erzeugnisse | C24: =Hauptbuch!J32 -> 120000
A25: 2200 | B25: Fertige Erzeugnisse | C25: =Hauptbuch!J35 -> 25800
A26: 2400 | B26: Forderungen a.L.u.L. | C26: =Hauptbuch!J39 -> 53800
A27: 2800 | B27: Bank | C27: =Hauptbuch!J44 -> 99800
A28: 2880 | B28: Kasse | C28: =Hauptbuch!J52 -> 5600
C29: =SUM(C18:C28) -> 1321300 | F29: =SUM(F18:F28) -> 1321300

Sheet Kontenplan
B1: Kontenplan
A3: Nr. | B3: Konto
A4: 0510 | B4: Bebaute Grundstücke
A5: 0700 | B5: Technische Anlagen und Maschinen
A6: 0800 | B6: Betriebs- und Geschäftsausstattung
A7: 2000 | B7: Rohstoffe
A8: 2020 | B8: Hilfsstoffe
A9: 2030 | B9: Betriebsstoffe
A10: 2040 | B10: Betriebsstoffe
A11: 2100 | B11: Unfertige Erzeugnisse
A12: 2200 | B12: Fertige Erzeugnisse
A13: 2400 | B13: Forderungen a.L.u.L.
A14: 2800 | B14: Kreditinstitute/Bank
A15: 2880 | B15: Kasse
A16: 3000 | B16: Eigenkapital
A17: 4200 | B17: Verbindlichkeiten g. Kreditinstituten
A18: 4400 | B18: Verbindlichkeiten a.L.u.L.
A19: 5000 | B19: Umsatzerlöse
A20: 6000 | B20: Aufwendungen für Rohstoffe
A21: 6020 | B21: Aufwendungen für Hilfsstoffe
A22: 6030 | B22: Aufwendungen für Betriebsstoffe
A23: 6160 | B23: Fremdinstandhaltung
A24: 6200 | B24: Löhne
A25: 6700 | B25: Mieten
A26: 6870 | B26: Werbung
A27: 7510 | B27: Zinsaufwendungen
A28: 8000 | B28: Eröffnungsbilanz
A29: 8010 | B29: Schlussbilanz
A30: 8020 | B30: Gewinn und Verlust
